[Event "Turkish Cup 2022"]
[Site "Sakarya"]
[Date "2022.03.27"]
[Round "4.37"]
[White "Anacak, Hasan Gunes"]
[Black "Kandaz, Berat Efe"]
[Result "0-1"]
[ECO "C55"]
[WhiteElo "1798"]
[BlackElo "1519"]
[Annotator "NA"]
[PlyCount "54"]
[EventDate "2022.03.25"]
[EventType "swiss"]
[EventCountry "TUR"]
[SourceTitle "playchess.com"]
[Source "ChessBase"]
[SourceQuality "1"]
[TimeControl "5400+30"]

1. e4 {[%emt 0:02:00]} e5 {[%emt 0:01:00]} 2. Nf3 {[%emt 0:05:30]} Nc6 {[%emt 0:00:30]} 3. Bc4 {[%emt 0:00:30]} Bc5 {[%emt 0:00:30]} 4. c3 {[%emt 0:01:30]} Nf6 {[%emt 0:00:30]} 5. d3 {[%emt 0:00:30]} O-O {[%emt 0:00:30]} 6. O-O {[%emt 0:00:30]} d5 {[%emt 0:01:30]} 7. exd5 {[%emt 0:00:30]} Nxd5 {[%emt 0:00:30]} 8. Re1 {[%emt 0:00:30]} Bg4 {[%emt 0:03:30]} 9. h3 {[%emt 0:00:30]} Bh5 {[%emt 0:01:30]} 10. Nbd2 {[%emt 0:00:30]} Nb6 {[%emt 0:03:30]} 11. Bb5 {[%emt 0:09:30]} Bd6 {[%emt 0:04:30]} 12. Ne4 {[%emt 0:04:30]} f5 {[%emt 0:06:30]} 13. Bxc6 {[%emt 0:17:30]} bxc6 {[%emt 0:00:30]} 14. Ng3 {[%emt 0:01:30]} Bxf3 {[%emt 0:06:30]} 15. Qxf3 {[%emt 0:00:30]} Qd7 {[%emt 0:01:30]} 16. Rd1 {[%emt 0:13:30]} Rae8 {[%emt 0:09:30]} 17. c4 {[%emt 0:09:30]} e4 {[%emt 0:14:30]} 18. dxe4 {[%emt 0:02:30]} fxe4 {[%emt 0:00:30]} 19. Qe2 {[%emt 0:03:30]} Qe6 {[%emt 0:15:30]} 20. b3 {[%emt 0:13:15]} e3 {[%emt 0:03:30]} 21. Qxe3 {[%emt 0:00:14]} Qf6 {[%emt 0:04:30]} 22. Qd2 {[%emt 0:10:07]} Qxa1 {[%emt 0:01:23]} 23. Bb2 {[%emt 0:00:09]} Qxa2 {[%emt 0:01:19]} 24. c5 {[%emt 0:00:04]} Bf4 {[%emt 0:01:55]} 25. Qc2 {[%emt 0:01:18]} Be5 {[%emt 0:02:11]} 26. cxb6 {[%emt 0:00:37]} Qxb2 {[%emt 0:00:57]} 27. Qc4+ {[%emt 0:00:30]} Kh8 {[%emt 0:00:19]} 0-1

[Event "Turkish Cup 2022"]
[Site "Sakarya"]
[Date "2022.03.27"]
[Round "4.38"]
[White "Ozcan, Kadir Kutay"]
[Black "Dolek, Gokalp Deniz"]
[Result "0-1"]
[ECO "C00"]
[WhiteElo "1878"]
[BlackElo "1520"]
[Annotator "NA"]
[PlyCount "122"]
[EventDate "2022.03.25"]
[EventType "swiss"]
[EventCountry "TUR"]
[SourceTitle "playchess.com"]
[Source "ChessBase"]
[SourceQuality "1"]
[TimeControl "5400+30"]

1. e4 {[%emt 0:10:00]} e6 {[%emt 0:01:00]} 2. b3 {[%emt 0:00:30]} d5 {[%emt 0:00:30]} 3. Bb2 {[%emt 0:00:00]} Nf6 {[%emt 0:01:30]} 4. Nc3 {[%emt 0:00:00]} dxe4 {[%emt 0:01:30]} 5. g4 {[%emt 0:00:30]} Bd7 {[%emt 0:00:00]} 6. g5 {[%emt 0:01:30]} Nd5 {[%emt 0:00:00]} 7. Nxe4 {[%emt 0:00:00]} Bc6 {[%emt 0:00:00]} 8. Bg2 {[%emt 0:05:00]} Nf4 {[%emt 0:03:00]} 9. Bf3 {[%emt 0:00:30]} Nd7 {[%emt 0:04:30]} 10. h4 {[%emt 0:08:30]} Nb6 {[%emt 0:11:30]} 11. Ne2 {[%emt 0:01:30]} Nbd5 {[%emt 0:03:30]} 12. Be5 {[%emt 0:10:30]} Ng6 {[%emt 0:01:30]} 13. Bg3 {[%emt 0:00:30]} Bd6 {[%emt 0:01:30]} 14. Nxd6+ {[%emt 0:05:30]} cxd6 {[%emt 0:00:30]} 15. d4 {[%emt 0:04:30]} Nge7 {[%emt 0:03:30]} 16. c4 {[%emt 0:05:30]} Nb4 {[%emt 0:00:30]} 17. Bxc6+ {[%emt 0:00:00]} Nbxc6 {[%emt 0:00:30]} 18. Qd2 {[%emt 0:03:00]} d5 {[%emt 0:07:30]} 19. Rd1 {[%emt 0:03:30]} Rc8 {[%emt 0:04:30]} 20. Bf4 {[%emt 0:04:30]} dxc4 {[%emt 0:10:30]} 21. bxc4 {[%emt 0:00:30]} Na5 {[%emt 0:00:30]} 22. c5 {[%emt 0:01:30]} Qd5 {[%emt 0:00:30]} 23. Rg1 {[%emt 0:09:30]} Nac6 {[%emt 0:01:30]} 24. Nc3 {[%emt 0:03:30]} Qc4 {[%emt 0:04:30]} 25. Ne4 {[%emt 0:02:30]} Nf5 {[%emt 0:00:30]} 26. Nd6+ {[%emt 0:00:30]} Nxd6 {[%emt 0:02:30]} 27. Bxd6 {[%emt 0:00:30]} Nb4 {[%emt 0:00:30]} 28. f4 {[%emt 0:02:59]} Rc6 {[%emt 0:05:30]} 29. Rg3 {[%emt 0:04:25]} Ra6 {[%emt 0:11:30]} 30. a3 {[%emt 0:01:10]} Nd5 {[%emt 0:04:36]} 31. Rb1 {[%emt 0:05:51]} b6 {[%emt 0:04:57]} 32. Rc1 {[%emt 0:06:30]} Qb5 {[%emt 0:01:13]} 33. Qe2 {[%emt 0:01:18]} Qxe2+ {[%emt 0:01:43]} 34. Kxe2 {[%emt 0:00:30]} Kd7 {[%emt 0:00:00]} 35. Rb3 {[%emt 0:00:20]} Rc8 {[%emt 0:00:24]} 36. Kf3 {[%emt 0:00:34]} Ra4 {[%emt 0:00:24]} 37. Ke4 {[%emt 0:00:45]} g6 {[%emt 0:01:01]} 38. Kd3 {[%emt 0:00:31]} Rc6 {[%emt 0:01:15]} 39. cxb6 {[%emt 0:00:33]} axb6 {[%emt 0:00:19]} 40. Rxc6 {[%emt 0:00:23]} Kxc6 {[%emt 0:00:30]} 41. Be5 {[%emt 0:00:30]} b5 {[%emt 0:00:30]} 42. Ke4 {[%emt 0:00:30]} Rc4 {[%emt 0:00:30]} 43. h5 {[%emt 0:00:26]} gxh5 {[%emt 0:01:00]} 44. Kd3 {[%emt 0:00:39]} Rc1 {[%emt 0:00:20]} 45. Rb2 {[%emt 0:00:32]} Rc3+ {[%emt 0:00:42]} 46. Kd2 {[%emt 0:00:30]} h4 {[%emt 0:00:00]} 47. Ke2 {[%emt 0:00:29]} h3 {[%emt 0:00:12]} 48. Kf2 {[%emt 0:00:48]} Rxa3 {[%emt 0:00:24]} 49. f5 {[%emt 0:00:04]} b4 {[%emt 0:00:21]} 50. fxe6 {[%emt 0:00:50]} fxe6 {[%emt 0:00:30]} 51. Kg1 {[%emt 0:00:30]} Rc3 {[%emt 0:00:13]} 52. Kf2 {[%emt 0:00:42]} b3 {[%emt 0:00:15]} 53. Ke1 {[%emt 0:00:14]} Kb5 {[%emt 0:00:11]} 54. Kd2 {[%emt 0:00:18]} Kc4 {[%emt 0:00:06]} 55. Kd1 {[%emt 0:00:30]} Ne3+ {[%emt 0:00:47]} 56. Ke2 {[%emt 0:00:15]} Nc2 {[%emt 0:00:37]} 57. d5 {[%emt 0:00:44]} Re3+ {[%emt 0:00:30]} 58. Kd2 {[%emt 0:00:30]} Rxe5 {[%emt 0:00:06]} 59. dxe6 {[%emt 0:00:00]} Rxe6 {[%emt 0:00:30]} 60. g6 {[%emt 0:00:00]} Rxg6 {[%emt 0:00:00]} 61. Kc1 {[%emt 0:00:03]} h2 {[%emt 0:00:00]} 0-1

[Event "Turkish Cup 2022"]
[Site "Sakarya"]
[Date "2022.03.27"]
[Round "4.39"]
[White "Avsar, Gediz"]
[Black "Kilic, Cihan"]
[Result "1-0"]
[ECO "B13"]
[WhiteElo "1506"]
[BlackElo "1874"]
[Annotator "NA"]
[PlyCount "85"]
[EventDate "2022.03.25"]
[EventType "swiss"]
[EventCountry "TUR"]
[SourceTitle "playchess.com"]
[Source "ChessBase"]
[SourceQuality "1"]
[TimeControl "5400+30"]

1. e4 {[%emt 0:01:00]} c6 {[%emt 0:06:00]} 2. d4 {[%emt 0:00:30]} d5 {[%emt 0:00:30]} 3. exd5 {[%emt 0:00:30]} cxd5 {[%emt 0:00:00]} 4. Bd3 {[%emt 0:00:00]} Nc6 {[%emt 0:00:00]} 5. c3 {[%emt 0:00:00]} e6 {[%emt 0:00:00]} 6. Bf4 {[%emt 0:00:00]} Bd6 {[%emt 0:00:00]} 7. Bxd6 {[%emt 0:00:00]} Qxd6 {[%emt 0:00:00]} 8. Nf3 {[%emt 0:00:30]} Nge7 {[%emt 0:00:00]} 9. O-O {[%emt 0:00:30]} f6 {[%emt 0:00:00]} 10. Nbd2 {[%emt 0:11:30]} O-O {[%emt 0:00:00]} 11. Re1 {[%emt 0:02:30]} e5 {[%emt 0:01:30]} 12. dxe5 {[%emt 0:02:30]} Nxe5 {[%emt 0:07:30]} 13. Be2 {[%emt 0:02:30]} Be6 {[%emt 0:02:30]} 14. Nb3 {[%emt 0:02:30]} N7g6 {[%emt 0:01:30]} 15. Nbd4 {[%emt 0:02:30]} Bf7 {[%emt 0:00:30]} 16. Qc2 {[%emt 0:04:30]} Rad8 {[%emt 0:01:30]} 17. Rad1 {[%emt 0:01:30]} Qc5 {[%emt 0:00:30]} 18. Bf1 {[%emt 0:13:30]} Rfe8 {[%emt 0:00:30]} 19. Qd2 {[%emt 0:05:30]} a6 {[%emt 0:02:30]} 20. Re3 {[%emt 0:08:30]} b5 {[%emt 0:04:30]} 21. Rde1 {[%emt 0:02:30]} Qb6 {[%emt 0:09:30]} 22. g3 {[%emt 0:02:30]} Rd7 {[%emt 0:05:30]} 23. Bh3 {[%emt 0:03:30]} Rde7 {[%emt 0:01:30]} 24. Kg2 {[%emt 0:06:30]} Nc4 {[%emt 0:07:30]} 25. Rxe7 {[%emt 0:00:00]} Nxd2 {[%emt 0:01:30]} 26. Rxe8+ {[%emt 0:00:00]} Bxe8 {[%emt 0:00:30]} 27. Rxe8+ {[%emt 0:00:30]} Kf7 {[%emt 0:00:30]} 28. Re6 {[%emt 0:00:30]} Qa5 {[%emt 0:00:30]} 29. Nxd2 {[%emt 0:01:30]} Qxa2 {[%emt 0:00:30]} 30. Rc6 {[%emt 0:02:30]} Ne5 {[%emt 0:04:30]} 31. Rc7+ {[%emt 0:02:30]} Ke8 {[%emt 0:00:30]} 32. Be6 {[%emt 0:04:13]} Kd8 {[%emt 0:04:30]} 33. Rc5 {[%emt 0:03:09]} Qxb2 {[%emt 0:02:30]} 34. Nf5 {[%emt 0:02:03]} Nd7 {[%emt 0:03:30]} 35. Rxd5 {[%emt 0:00:14]} Kc7 {[%emt 0:00:30]} 36. Rxd7+ {[%emt 0:00:40]} Kb6 {[%emt 0:00:00]} 37. Rd6+ {[%emt 0:00:59]} Kc7 {[%emt 0:00:00]} 38. Ne4 {[%emt 0:01:36]} Qe2 {[%emt 0:01:30]} 39. Rc6+ {[%emt 0:03:28]} Kb7 {[%emt 0:00:30]} 40. Nc5+ {[%emt 0:00:09]} Kb8 {[%emt 0:01:30]} 41. Nxa6+ {[%emt 0:02:02]} Ka8 {[%emt 0:00:30]} 42. Bd5 {[%emt 0:01:25]} Ka7 {[%emt 0:00:00]} 43. Nd4 {[%emt 0:00:17]} 1-0

[Event "Turkish Cup 2022"]
[Site "Sakarya"]
[Date "2022.03.27"]
[Round "4.40"]
[White "Topuz, Mirac Melih"]
[Black "Karadag, Eflatun Cem"]
[Result "1/2-1/2"]
[ECO "A49"]
[WhiteElo "1515"]
[BlackElo "1800"]
[Annotator "NA"]
[PlyCount "153"]
[EventDate "2022.03.25"]
[EventType "swiss"]
[EventCountry "TUR"]
[SourceTitle "playchess.com"]
[Source "ChessBase"]
[SourceQuality "1"]
[TimeControl "5400+30"]

1. d4 {[%emt 0:01:00]} Nf6 {[%emt 0:02:00]} 2. Nf3 {[%emt 0:00:00]} d6 {[%emt 0:01:30]} 3. b3 {[%emt 0:00:00]} Nbd7 {[%emt 0:01:30]} 4. Bb2 {[%emt 0:00:30]} g6 {[%emt 0:01:30]} 5. g3 {[%emt 0:02:30]} Bg7 {[%emt 0:00:30]} 6. Bg2 {[%emt 0:00:00]} O-O {[%emt 0:02:30]} 7. O-O {[%emt 0:00:00]} e5 {[%emt 0:02:30]} 8. dxe5 {[%emt 0:02:30]} Ng4 {[%emt 0:00:30]} 9. Kh1 {[%emt 0:01:30]} Re8 {[%emt 0:02:30]} 10. Nbd2 {[%emt 0:07:30]} Ngxe5 {[%emt 0:05:30]} 11. Nxe5 {[%emt 0:06:30]} Nxe5 {[%emt 0:03:30]} 12. Ne4 {[%emt 0:03:30]} d5 {[%emt 0:06:30]} 13. f4 {[%emt 0:11:30]} dxe4 {[%emt 0:12:30]} 14. Qxd8 {[%emt 0:06:30]} Rxd8 {[%emt 0:00:30]} 15. fxe5 {[%emt 0:00:30]} Bf5 {[%emt 0:02:30]} 16. g4 {[%emt 0:08:30]} Bxg4 {[%emt 0:02:30]} 17. Bxe4 {[%emt 0:00:00]} c6 {[%emt 0:03:30]} 18. Bd3 {[%emt 0:08:00]} Be6 {[%emt 0:09:30]} 19. Rf2 {[%emt 0:04:30]} Rd7 {[%emt 0:04:30]} 20. Raf1 {[%emt 0:01:30]} Re8 {[%emt 0:07:30]} 21. Kg2 {[%emt 0:02:30]} b5 {[%emt 0:03:30]} 22. Rf4 {[%emt 0:08:30]} Bd5+ {[%emt 0:02:30]} 23. e4 {[%emt 0:03:30]} Be6 {[%emt 0:00:30]} 24. Bc3 {[%emt 0:01:44]} a6 {[%emt 0:02:30]} 25. a4 {[%emt 0:00:53]} Rb7 {[%emt 0:02:52]} 26. axb5 {[%emt 0:01:03]} axb5 {[%emt 0:00:30]} 27. Ra1 {[%emt 0:00:30]} c5 {[%emt 0:01:56]} 28. Rff1 {[%emt 0:02:24]} c4 {[%emt 0:00:19]} 29. bxc4 {[%emt 0:00:54]} bxc4 {[%emt 0:01:08]} 30. Be2 {[%emt 0:00:17]} h5 {[%emt 0:03:32]} 31. Rfb1 {[%emt 0:01:00]} Reb8 {[%emt 0:01:14]} 32. Rxb7 {[%emt 0:01:51]} Rxb7 {[%emt 0:01:52]} 33. Ra4 {[%emt 0:02:20]} Rc7 {[%emt 0:01:07]} 34. Kf2 {[%emt 0:02:42]} Kh7 {[%emt 0:02:17]} 35. Ke3 {[%emt 0:00:52]} Kh6 {[%emt 0:01:32]} 36. Kd4 {[%emt 0:01:49]} Kg5 {[%emt 0:00:54]} 37. Ra1 {[%emt 0:03:55]} Rd7+ {[%emt 0:01:24]} 38. Ke3 {[%emt 0:00:43]} Bf8 {[%emt 0:00:25]} 39. Rg1+ {[%emt 0:01:16]} Kh6 {[%emt 0:00:42]} 40. Bd4 {[%emt 0:00:30]} Be7 {[%emt 0:00:00]} 41. c3 {[%emt 0:01:25]} Bg5+ {[%emt 0:00:17]} 42. Kf2 {[%emt 0:02:04]} Rb7 {[%emt 0:00:11]} 43. Be3 {[%emt 0:00:25]} Bxe3+ {[%emt 0:00:53]} 44. Kxe3 {[%emt 0:00:30]} Rb2 {[%emt 0:00:30]} 45. Ra1 {[%emt 0:00:30]} Rc2 {[%emt 0:00:30]} 46. Ra3 {[%emt 0:00:30]} Kg5 {[%emt 0:00:30]} 47. h3 {[%emt 0:01:30]} Kh4 {[%emt 0:00:13]} 48. Bf1 {[%emt 0:00:24]} Rc1 {[%emt 0:01:02]} 49. Be2 {[%emt 0:00:44]} Kxh3 {[%emt 0:00:27]} 50. Kd4 {[%emt 0:00:16]} Kg3 {[%emt 0:01:18]} 51. Bxc4 {[%emt 0:01:21]} Rd1+ {[%emt 0:00:15]} 52. Kc5 {[%emt 0:00:31]} Bxc4 {[%emt 0:00:26]} 53. Kxc4 {[%emt 0:00:01]} Rd7 {[%emt 0:00:54]} 54. Ra6 {[%emt 0:00:21]} Re7 {[%emt 0:01:06]} 55. Kd5 {[%emt 0:00:30]} h4 {[%emt 0:00:00]} 56. Rf6 {[%emt 0:00:57]} h3 {[%emt 0:00:21]} 57. e6 {[%emt 0:00:32]} fxe6+ {[%emt 0:00:29]} 58. Kd6 {[%emt 0:00:30]} Rg7 {[%emt 0:00:11]} 59. Rf1 {[%emt 0:00:01]} Kg2 {[%emt 0:00:47]} 60. Ra1 {[%emt 0:00:06]} g5 {[%emt 0:00:19]} 61. Kxe6 {[%emt 0:00:35]} g4 {[%emt 0:00:12]} 62. Kf6 {[%emt 0:00:17]} Rc7 {[%emt 0:00:09]} 63. e5 {[%emt 0:00:13]} Rxc3 {[%emt 0:00:13]} 64. Kf5 {[%emt 0:01:54]} g3 {[%emt 0:00:25]} 65. e6 {[%emt 0:00:05]} Rf3+ {[%emt 0:00:15]} 66. Kg4 {[%emt 0:00:00]} Re3 {[%emt 0:03:11]} 67. Kf4 {[%emt 0:01:20]} Rf3+ {[%emt 0:02:35]} 68. Kg4 {[%emt 0:00:01]} h2 {[%emt 0:00:12]} 69. e7 {[%emt 0:01:03]} Re3 {[%emt 0:00:22]} 70. Ra2+ {[%emt 0:00:29]} Kf1 {[%emt 0:00:21]} 71. Ra1+ {[%emt 0:01:00]} Ke2 {[%emt 0:00:07]} 72. e8=Q {[%emt 0:00:10]} Rxe8 {[%emt 0:00:32]} 73. Kxg3 {[%emt 0:00:09]} Rh8 {[%emt 0:00:09]} 74. Ra2+ {[%emt 0:00:41]} Ke3 {[%emt 0:00:40]} 75. Rxh2 {[%emt 0:00:30]} Rg8+ {[%emt 0:00:00]} 76. Kh4 {[%emt 0:00:00]} Kf3 {[%emt 0:00:18]} 77. Ra2 {[%emt 0:00:00]} 1/2-1/2

[Event "Turkish Cup 2022"]
[Site "Sakarya"]
[Date "2022.03.27"]
[Round "4.41"]
[White "Arslan, Tayfun"]
[Black "Kuru, Atilla"]
[Result "0-1"]
[ECO "C01"]
[WhiteElo "1512"]
[BlackElo "1674"]
[Annotator "NA"]
[PlyCount "70"]
[EventDate "2022.03.25"]
[EventType "swiss"]
[EventCountry "TUR"]
[SourceTitle "playchess.com"]
[Source "ChessBase"]
[SourceQuality "1"]
[TimeControl "5400+30"]

1. e4 {[%emt 0:01:00]} e6 {[%emt 0:01:00]} 2. d4 {[%emt 0:00:30]} d5 {[%emt 0:00:30]} 3. exd5 {[%emt 0:00:30]} exd5 {[%emt 0:00:30]} 4. Nf3 {[%emt 0:00:30]} Bd6 {[%emt 0:00:00]} 5. Bd3 {[%emt 0:00:00]} Ne7 {[%emt 0:00:00]} 6. O-O {[%emt 0:00:00]} Bg4 {[%emt 0:00:00]} 7. h3 {[%emt 0:00:00]} Bh5 {[%emt 0:00:00]} 8. Bg5 {[%emt 0:00:00]} f6 {[%emt 0:00:00]} 9. Bh4 {[%emt 0:00:30]} Nbc6 {[%emt 0:00:00]} 10. c3 {[%emt 0:01:30]} Qd7 {[%emt 0:00:00]} 11. b4 {[%emt 0:00:00]} Ng6 {[%emt 0:01:00]} 12. Re1+ {[%emt 0:00:00]} Nce7 {[%emt 0:00:00]} 13. Bg3 {[%emt 0:00:30]} Nf4 {[%emt 0:00:00]} 14. Bxf4 {[%emt 0:01:30]} Bxf4 {[%emt 0:00:30]} 15. Qe2 {[%emt 0:00:30]} Bd6 {[%emt 0:00:30]} 16. Nbd2 {[%emt 0:00:30]} O-O-O {[%emt 0:00:30]} 17. a4 {[%emt 0:00:30]} g5 {[%emt 0:00:30]} 18. Qe6 {[%emt 0:00:30]} Qxe6 {[%emt 0:01:30]} 19. Rxe6 {[%emt 0:00:30]} Rdf8 {[%emt 0:00:30]} 20. Rae1 {[%emt 0:00:30]} Kd7 {[%emt 0:00:00]} 21. g4 {[%emt 0:04:30]} Bg6 {[%emt 0:00:00]} 22. Bxg6 {[%emt 0:00:30]} Nxg6 {[%emt 0:00:00]} 23. R6e3 {[%emt 0:03:30]} h5 {[%emt 0:00:00]} 24. gxh5 {[%emt 0:11:30]} Rxh5 {[%emt 0:00:30]} 25. Kf1 {[%emt 0:01:30]} Nf4 {[%emt 0:00:30]} 26. Ng1 {[%emt 0:00:30]} Rfh8 {[%emt 0:00:30]} 27. Rf3 {[%emt 0:11:30]} Nxh3 {[%emt 0:00:00]} 28. Nxh3 {[%emt 0:05:30]} Rxh3 {[%emt 0:00:00]} 29. Ree3 {[%emt 0:04:30]} Rh1+ {[%emt 0:00:30]} 30. Ke2 {[%emt 0:01:30]} Bf4 {[%emt 0:00:30]} 31. Nf1 {[%emt 0:01:30]} Bxe3 {[%emt 0:00:30]} 32. Nxe3 {[%emt 0:00:30]} Ke6 {[%emt 0:00:30]} 33. c4 {[%emt 0:00:30]} c6 {[%emt 0:00:00]} 34. cxd5+ {[%emt 0:01:30]} cxd5 {[%emt 0:00:00]} 35. Nd1 {[%emt 0:02:30]} R8h3 {[%emt 0:00:30]} 0-1

[Event "Turkish Cup 2022"]
[Site "Sakarya"]
[Date "2022.03.27"]
[Round "4.42"]
[White "Kurdas, Halil Ibrahim"]
[Black "Kervancioglu, Talu"]
[Result "1-0"]
[ECO "B35"]
[WhiteElo "1850"]
[BlackElo "1497"]
[Annotator "NA"]
[PlyCount "63"]
[EventDate "2022.03.25"]
[EventType "swiss"]
[EventCountry "TUR"]
[SourceTitle "playchess.com"]
[Source "ChessBase"]
[SourceQuality "1"]
[TimeControl "5400+30"]

1. e4 {[%emt 0:01:00]} c5 {[%emt 0:01:00]} 2. Nf3 {[%emt 0:00:30]} g6 {[%emt 0:00:00]} 3. d4 {[%emt 0:00:30]} cxd4 {[%emt 0:00:00]} 4. Nxd4 {[%emt 0:00:30]} Nc6 {[%emt 0:00:30]} 5. Bc4 {[%emt 0:01:30]} Bg7 {[%emt 0:00:30]} 6. Be3 {[%emt 0:01:30]} Nf6 {[%emt 0:00:00]} 7. Nc3 {[%emt 0:00:00]} Qa5 {[%emt 0:00:00]} 8. f3 {[%emt 0:02:00]} Qb4 {[%emt 0:02:30]} 9. Nxc6 {[%emt 0:05:30]} Qxc4 {[%emt 0:05:30]} 10. Ne5 {[%emt 0:03:30]} Qc7 {[%emt 0:02:30]} 11. Nd3 {[%emt 0:01:30]} d6 {[%emt 0:00:30]} 12. Qd2 {[%emt 0:01:30]} a6 {[%emt 0:01:30]} 13. Nf4 {[%emt 0:02:30]} Be6 {[%emt 0:09:30]} 14. Bd4 {[%emt 0:09:30]} O-O {[%emt 0:09:30]} 15. g4 {[%emt 0:01:30]} Qc4 {[%emt 0:16:30]} 16. O-O-O {[%emt 0:13:30]} Rac8 {[%emt 0:13:30]} 17. h4 {[%emt 0:13:30]} b5 {[%emt 0:05:30]} 18. b3 {[%emt 0:04:30]} Qb4 {[%emt 0:05:30]} 19. Kb2 {[%emt 0:04:30]} Bxb3 {[%emt 0:12:39]} 20. a3 {[%emt 0:04:30]} Qa5 {[%emt 0:02:19]} 21. cxb3 {[%emt 0:07:42]} e5 {[%emt 0:00:29]} 22. Bxe5 {[%emt 0:02:27]} dxe5 {[%emt 0:00:30]} 23. Nfd5 {[%emt 0:00:00]} Kh8 {[%emt 0:04:31]} 24. b4 {[%emt 0:01:24]} Qd8 {[%emt 0:00:10]} 25. h5 {[%emt 0:00:00]} a5 {[%emt 0:01:46]} 26. h6 {[%emt 0:00:54]} Ng8 {[%emt 0:01:36]} 27. hxg7+ {[%emt 0:00:30]} Kxg7 {[%emt 0:00:30]} 28. Qh2 {[%emt 0:00:30]} h6 {[%emt 0:00:30]} 29. Qxe5+ {[%emt 0:00:30]} f6 {[%emt 0:00:30]} 30. Qh2 {[%emt 0:01:04]} axb4 {[%emt 0:00:00]} 31. axb4 {[%emt 0:00:08]} Ra8 {[%emt 0:02:04]} 32. Qc7+ {[%emt 0:00:14]} 1-0

[Event "Turkish Cup 2022"]
[Site "Sakarya"]
[Date "2022.03.27"]
[Round "4.43"]
[White "Once, Ahmet Asim"]
[Black "Durucay, Uygar"]
[Result "0-1"]
[ECO "A14"]
[WhiteElo "1450"]
[BlackElo "1700"]
[Annotator "NA"]
[PlyCount "90"]
[EventDate "2022.03.25"]
[EventType "swiss"]
[EventCountry "TUR"]
[SourceTitle "playchess.com"]
[Source "ChessBase"]
[SourceQuality "1"]
[TimeControl "5400+30"]

1. d4 {[%emt 0:01:00]} Nf6 {[%emt 0:01:00]} 2. Nf3 {[%emt 0:00:30]} e6 {[%emt 0:00:30]} 3. g3 {[%emt 0:02:30]} d5 {[%emt 0:00:30]} 4. Bg2 {[%emt 0:00:30]} Be7 {[%emt 0:00:30]} 5. O-O {[%emt 0:00:30]} O-O {[%emt 0:00:00]} 6. b3 {[%emt 0:00:00]} b6 {[%emt 0:00:00]} 7. Bb2 {[%emt 0:01:00]} Bb7 {[%emt 0:00:00]} 8. Nbd2 {[%emt 0:01:30]} c5 {[%emt 0:00:00]} 9. e3 {[%emt 0:00:30]} Nc6 {[%emt 0:00:30]} 10. c4 {[%emt 0:04:30]} cxd4 {[%emt 0:04:30]} 11. exd4 {[%emt 0:01:30]} Rc8 {[%emt 0:02:30]} 12. a3 {[%emt 0:08:30]} Rc7 {[%emt 0:03:30]} 13. Rc1 {[%emt 0:04:30]} Qa8 {[%emt 0:01:30]} 14. cxd5 {[%emt 0:14:30]} Nxd5 {[%emt 0:01:30]} 15. Qe2 {[%emt 0:01:30]} Rfc8 {[%emt 0:03:30]} 16. h4 {[%emt 0:07:30]} h6 {[%emt 0:14:30]} 17. Rfe1 {[%emt 0:07:30]} Nf6 {[%emt 0:02:30]} 18. Qe3 {[%emt 0:06:30]} b5 {[%emt 0:04:30]} 19. Bh3 {[%emt 0:11:30]} Nd8 {[%emt 0:05:30]} 20. Ne5 {[%emt 0:08:09]} Bd5 {[%emt 0:01:30]} 21. g4 {[%emt 0:03:59]} Nh7 {[%emt 0:02:30]} 22. Ndf3 {[%emt 0:03:18]} Nc6 {[%emt 0:11:30]} 23. Nxc6 {[%emt 0:04:08]} Rxc6 {[%emt 0:02:30]} 24. Ne5 {[%emt 0:00:49]} Rc2 {[%emt 0:01:30]} 25. Re2 {[%emt 0:01:34]} Rxc1+ {[%emt 0:01:30]} 26. Bxc1 {[%emt 0:00:30]} Bxh4 {[%emt 0:00:30]} 27. f4 {[%emt 0:00:30]} Bd8 {[%emt 0:00:00]} 28. Bd2 {[%emt 0:03:57]} Nf6 {[%emt 0:01:00]} 29. g5 {[%emt 0:00:42]} hxg5 {[%emt 0:01:30]} 30. fxg5 {[%emt 0:00:18]} Ne4 {[%emt 0:00:30]} 31. Qf4 {[%emt 0:01:08]} Nxg5 {[%emt 0:02:30]} 32. Qf1 {[%emt 0:00:48]} Qb7 {[%emt 0:02:30]} 33. Bg4 {[%emt 0:00:25]} Ne4 {[%emt 0:10:30]} 34. Bh5 {[%emt 0:00:39]} g6 {[%emt 0:01:22]} 35. Bxg6 {[%emt 0:00:30]} fxg6 {[%emt 0:02:23]} 36. Rg2 {[%emt 0:00:33]} g5 {[%emt 0:01:45]} 37. Bb4 {[%emt 0:00:28]} Qg7 {[%emt 0:00:23]} 38. Ng4 {[%emt 0:00:29]} Qxd4+ {[%emt 0:00:57]} 39. Kh2 {[%emt 0:00:30]} Bc7+ {[%emt 0:00:17]} 40. Rg3 {[%emt 0:00:34]} Bxg3+ {[%emt 0:00:11]} 41. Kg2 {[%emt 0:00:22]} Nd2+ {[%emt 0:00:14]} 42. Kxg3 {[%emt 0:00:05]} Nxf1+ {[%emt 0:00:04]} 43. Kh3 {[%emt 0:00:05]} Qh8+ {[%emt 0:00:34]} 44. Nh6+ {[%emt 0:00:30]} Qxh6+ {[%emt 0:00:30]} 45. Kg4 {[%emt 0:00:30]} Qh4# {[%emt 0:00:00]} 0-1